Cogmind - Beta 13 X1 @@@ ROGUE MODE // 2023.07.21 @ 02:57:16 Player: Runia Result: Destroyed by as-17412 with Assembled Blade Performance ------------- Evolutions (0) 0 Regions Visited (2) 400 Robots Destroyed (26) 130 Value Destroyed (586) 586 Prototype IDs (0) 0 Alien Tech Used (0) 0 Bonus (0) 0 TOTAL SCORE: 1116 Bonus ------- None Cogmind --------- Core Integrity 0/250 Matter 281/300 Energy 250/250 System Corruption 0% Temperature Hot (231) Movement Treading (240) Ox1 Location -10/Mines Parts ------- > --- POWER (1) -------- Ion Engine > --- PROPULSION (2) --- Light Treads > --- UTILITY (2) ------ Large Storage Unit > --- WEAPON (2) ------- Beam Cannon Light Cannon > --- INVENTORY (15) --- Improved Heat Sink Small Matter Pod (50) Light Armor Plating Light Assault Rifle Peak State ------------ > --- POWER ------------ Ion Engine > --- PROPULSION ------- Light Treads Light Treads > --- UTILITY ---------- Small Storage Unit Core Shielding > --- WEAPON ----------- Light Cannon Light Cannon > --- INVENTORY -------- Ion Engine Light Treads Heat Sink Improved Heat Sink Small Matter Pod Light Armor Plating Beam Cannon Light Assault Rifle [Rating: 8] Favorites ----------- Power Ion Engine Engine Ion Engine Propulsion Light Treads Treads Light Treads Leg Aluminum Leg Utility Core Shielding Storage Large Storage Unit Protection Core Shielding Weapon Light Cannon Energy Cannon Beam Cannon Ballistic Gun Assault Rifle Ballistic Cannon Light Cannon Special Weapon Mining Laser Build | -11 -10 -10 ------- Run | Jun Mat Min Slots Evolved . | . . . Power . | . . . Propulsion . | . . . Utility . | . . . Weapon . | . . . Parts Attached 14 | 2 6 6 Power 2 | . 1 1 Engine 2 | . 1 1 Core . | . . . Reactor . | . . . Propulsion 5 | 2 2 1 Treads 5 | 2 2 1 Leg . | . . . Wheel . | . . . Hover . | . . . Flight . | . . . Utility 2 | . 1 1 Device . | . . . Storage 1 | . . 1 Processor . | . . . Hackware . | . . . Protection 1 | . 1 . Artifact . | . . . Weapon 5 | . 2 3 Energy Gun . | . . . Energy Cannon 1 | . . 1 Ballistic Gun . | . . . Ballistic Cannon 3 | . 2 1 Launcher . | . . . Special Weapon 1 | . . 1 Impact Weapon . | . . . Slashing Weapon . | . . . Piercing Weapon . | . . . Special Melee Weapon . | . . . Unidentified Prototypes . | . . . Parts Lost 9 | . 4 5 Power 1 | . 1 . Propulsion 4 | . 2 2 Utility 1 | . . 1 Weapon 3 | . 1 2 Highest Loss Streak 4 | . 4 3 To Critical Strikes . | . . . Average Slot Usage (%) 99 | . 98 99 Engine 13 | . 13 14 Treads 27 | . 27 27 Storage 14 | . 14 14 Protection 13 | . 13 14 Energy Cannon 1 | . . 3 Ballistic Gun 10 | . 21 . Ballistic Cannon 12 | . 5 18 Special Weapon 2 | . . 5 Naked Turns . | . . . Heaviest Build 32 | 11 17 32 Greatest Support 40 | 40 40 40 Greatest Overweight (x) . | . . . Average Overweight (x) . | . . . Largest Inventory Capacity 15 | 8 8 15 Average Capacity 11 | 8 8 14 Most Carried 8 | 6 8 8 Average Carried 7 | 5 7 7 Final Capacity 15 | 8 8 15 Final Carried 8 | 4 8 4 Class Distribution -------------------- 100% | Mutant Dominant Class ---------------- Mutant | -10/Materials Mutant | -10/Mines Resources | -11 -10 -10 ----------- Run | Jun Mat Min Matter Collected 745 | 200 289 256 Remotely . | . . . Salvage Created 744 | . 487 257 Parts 47 | . 35 12 Haulers Intercepted 1 | . 1 . Recyclers Shooed 1 | . 1 . Parts Field Recycled . | . . . Retrieved Matter . | . . . Parts Self-Destructed . | . . . Prevented . | . . . Kills | -11 -10 -10 ------- Run | Jun Mat Min Combat Hostiles Destroyed 19 | . 17 2 Guns 8 | . 8 . Cannons 10 | . 8 2 Classes Destroyed 8 | . 5 3 Worker 2 | . 1 1 Builder 1 | . . 1 Hauler 1 | . 1 . Recycler 3 | . . 3 Swarmer 6 | . 6 . Grunt 10 | . 10 . Demolisher 2 | . . 2 Subdweller 1 | . 1 . Best Kill Streak 5 | . 5 2 Combat Bots Only 5 | . 5 1 Max Kills in Single Turn 2 | . 2 2 Gunslinging . | . . . Exploded . | . . . Melee . | . . . Uniques/NPCs Destroyed . | . . . Combat | -11 -10 -10 -------- Run | Jun Mat Min Damage Taken 1460 | . 843 617 Core 251 | . 143 108 Absorbed by Shields . | . . . Redirected to Shielding 55 | . 31 24 Core Remaining (%) 100 | 100 . . Volleys Fired 75 | . 55 20 Largest 2 | . 2 2 Hottest 100 | . 70 100 Shots Fired 147 | . 110 37 Gun 65 | . 65 . Cannon 79 | . 45 34 Launcher . | . . . Special 3 | . . 3 Kinetic 133 | . 110 23 Thermal 14 | . . 14 Explosive . | . . . Electromagnetic . | . . . Robot Hit Streak 7 | . 7 6 Robot Miss Streak 5 | . 5 3 Penetration Max . | . . . Secondary Targets . | . . . Shots Hit Robots 87 | . 68 19 Core Hits 37 | . 28 9 Critical Kills . | . . . Critical Parts Destroyed . | . . . Critical Strikes . | . . . Melee Attacks . | . . . Impact . | . . . Slashing . | . . . Piercing . | . . . Sneak Attacks . | . . . Combat Hostiles . | . . . Follow-up Attacks . | . . . Damage Inflicted 1296 | . 949 347 Guns 447 | . 447 . Cannons 849 | . 502 347 Explosions . | . . . Melee . | . . . Ramming . | . . . Kinetic 1191 | . 949 242 Thermal 105 | . . 105 Explosive . | . . . Electromagnetic . | . . . Impact . | . . . Slashing . | . . . Piercing . | . . . Highest Corruption . | . . . Average Corruption . | . . . Corruption Purged . | . . . Corruption Blocked . | . . . Overload Shots . | . . . Overflow Damage . | . . . Projectiles . | . . . Explosions . | . . . Melee . | . . . Knockbacks 8 | . 3 5 Impact . | . . . Kinetic 8 | . 3 5 Secondary . | . . . Self-Inflicted Damage . | . . . Shots . | . . . Rammed . | . . . Targets Rammed . | . . . Kicked . | . . . Crushed . | . . . Highest Temperature 231 | . 111 231 Average Temperature 41 | . 37 47 Received Heat Transfer 387 | . 387 . Siege Activations . | . . . Robots Corrupted . | . . . Combat Hostiles . | . . . Parts Fried . | . . . Impact Corruptions . | . . . Robots Melted . | . . . Combat Hostiles . | . . . Parts Melted . | . . . Heat Transferred 222 | . . 222 Parts Sabotaged . | . . . Parts Stolen . | . . . Parts Stripped . | . . . Power Chain Reactions . | . . . Missiles Intercepted . | . . . Alert | -11 -10 -10 ------- Run | Jun Mat Min Peak Influence 246 | . 246 111 Initial 95 | . . 95 Average 68 | . 93 46 Maximum Alert Level 1 | . 1 . Low Security (%) 96 | 100 92 100 Level 1 3 | . 7 . Level 2 . | . . . Level 3 . | . . . Level 4 . | . . . Level 5 . | . . . High Security . | . . . Max Security . | . . . Squads Dispatched 4 | . 4 . Investigation 4 | . 4 . Extermination . | . . . Reinforcement . | . . . Assault . | . . . Garrison . | . . . Intercept . | . . . Searches Triggered . | . . . Construction Impeded . | . . . Haulers Reinforced . | . . . Active Scanning Responses . | . . . Cargo Convoy Interrupts . | . . . Stealth | -11 -10 -10 --------- Run | Jun Mat Min Distress Signals 3 | . 1 2 Communications Jammed . | . . . Distress Signals . | . . . Times Spotted 28 | . 24 4 Peak Tracking Total 6 | . 6 2 Tactical Retreats 5 | . 4 1 Traps | -11 -10 -10 ------- Run | Jun Mat Min Traps Triggered . | . . . Indirectly . | . . . Trap Hack Attempts . | . . . Triggered . | . . . Disarmed . | . . . Reprogrammed . | . . . Reused . | . . . Traps Extracted . | . . . Installed . | . . . Triggered . | . . . Machines | -11 -10 -10 ---------- Run | Jun Mat Min Machines Disabled . | . . . Max in Single Turn . | . . . Machines Repaired . | . . . Machines Sabotaged . | . . . Overloaded Fab Kills . | . . . Hacking | -11 -10 -10 --------- Run | Jun Mat Min Machines Accessed 7 | . 7 . Terminals 7 | . 7 . Fabricators . | . . . Repair Stations . | . . . Recycling Units . | . . . Scanalyzers . | . . . Garrison Access . | . . . Total Hacks 29 | . 29 . Successful 12 | . 12 . Failed 16 | . 16 . Catastrophic 4 | . 4 . Database Lockouts 1 | . 1 . Manual 9 | . 9 . Terminals 29 | . 29 . Fabricators . | . . . Repair Stations . | . . . Recycling Units . | . . . Scanalyzers . | . . . Garrison Access . | . . . Terminal Hacks 11 | . 11 . Part Schematic 1 | . 1 . Emergency Access Points 1 | . 1 . Locate Traps 4 | . 4 . Hauler Manifests 1 | . 1 . Registered Components 1 | . 1 . Zone Layout 3 | . 3 . Fabricator Hacks . | . . . Repair Station Hacks . | . . . Recycling Unit Hacks . | . . . Scanalyzer . | . . . Garrison Access Hacks . | . . . Unauthorized Hacks 1 | . 1 . Terminals 1 | . 1 . Operators 1 | . 1 . Fabricators . | . . . Repair Stations . | . . . Recycling Units . | . . . Scanalyzers . | . . . Garrison Access . | . . . Data Cores Recovered . | . . . Used . | . . . Hacking Detections 6 | . 6 . Full Trace Events 2 | . 2 . Feedback Events . | . . . Feedback Blocked . | . . . Robot Schematics Acquired . | . . . Robots Built . | . . . Authchips . | . . . Time . | . . . Total Robot Build Rating . | . . . Part Schematics Acquired 1 | . 1 . Parts Built . | . . . Authchips . | . . . Time . | . . . Total Part Build Rating . | . . . Parts Repaired . | . . . Time . | . . . Parts Recycled . | . . . Recycled Matter . | . . . Retrieved Matter . | . . . Retrieved Components . | . . . Parts Scanalyzed . | . . . Part Schematics Acquired . | . . . Parts Damaged . | . . . Bothacking | -11 -10 -10 ------------ Run | Jun Mat Min Used RIF Installer . | . . . Robots Hacked . | . . . Non-combat . | . . . Combat . | . . . Robot Hacks Applied . | . . . Relay Couplers Released . | . . . Fabnet Peak Effective % . | . . . Robots Rewired . | . . . Allies Hacked . | . . . Hacks Repelled . | . . . Allies | -11 -10 -10 -------- Run | Jun Mat Min Total Allies . | . . . Largest Group . | . . . Highest-Rated Group . | . . . Highest-Rated Ally . | . . . Total Orders . | . . . Ally Attacks . | . . . Total Damage . | . . . Kills . | . . . Allies Corrupted . | . . . Allies Melted . | . . . Intel | -11 -10 -10 ------- Run | Jun Mat Min Robot Analysis Total . | . . . Derelict Logs Recovered 1 | . . 1 Drone Launches . | . . . Drone Recoveries . | . . . Exploration | -11 -10 -10 ------------- Run | Jun Mat Min Turns Passed 2269 | 3 1068 1198 Spaces Moved 958 | 1 527 430 Core . | . . . Treads 958 | 1 527 430 Legs . | . . . Wheels . | . . . Hover . | . . . Flight . | . . . Fastest Speed 160 | 160 160 160 Average Speed 160 | 160 160 160 Slowest Speed 160 | 160 160 160 Overloaded Moves . | . . . Propulsion Burnouts . | . . . Robots Hopped . | . . . Cave-ins Triggered . | . . . Exploration Rate (%) 50 | 2 79 70 Regions Visited 2 Branch Regions 1 Pre-discovered Areas 1 | . . 1 Known Exits Taken . | . . . Unknown Exits Taken 2 | 1 1 . Scrap Searched 1 | . . 1 Spaces Dug 3 | . . 3 Terrain Destroyed 3 | . . 3 Melee . | . . . Projectile 3 | . . 3 AOE . | . . . Terrain Rammed . | . . . Walls Destroyed . | . . . Machines Disabled . | . . . Actions | -11 -10 -10 --------- Run | Jun Mat Min Total 1550 | 4 649 897 Wait 483 | . 44 439 Move 956 | . 526 430 Hop . | . . . Pick Up 12 | . 12 . Fast Attach 3 | . 3 . Attach 8 | 2 3 3 Detach . | . . . Swap 3 | . . 3 Drop 10 | 2 6 2 Fire 75 | . 55 20 Melee . | . . . Ram . | . . . Kick . | . . . Crush . | . . . Escape Stasis . | . . . Rewire . | . . . Trap . | . . . Miscellaneous . | . . . Route ------- -11/Junkyard -10/Materials (discovered 4 exits: [*Mat x2] / [*Min] / [*Sub]) -10/Mines (discovered 2 exits: [*Mat] / [*Exi]) History --------- Turn | Location | Event 4 | -11/Junkyard | Discovered new exit (range 0) 4 | -11/Junkyard | Entered Materials 142 | -10/Materials | Central database locked down 290 | -10/Materials | Discovered new exit (range 10) 324 | -10/Materials | Build established: Mutant 364 | -10/Materials | Discovered new exit (range 8) 608 | -10/Materials | Discovered new exit (range 20) 700 | -10/Materials | Derelicts attacked the area 739 | -10/Materials | Discovered new exit (range 7) 901 | -10/Materials | Core integrity fell below 50% 914 | -10/Materials | Lost 4 parts (1p2n1w) 1072 | -10/Materials | Entered Mines 1120 | -10/Mines | Learned Materials trap positions 1135 | -10/Mines | Discovered new exit (range 4) 1196 | -10/Mines | Deemed a non-threat by the Exiles lab entrance 1196 | -10/Mines | Discovered new exit (range 5) 1444 | -10/Mines | Assembled infested the area 1985 | -10/Mines | Lost 3 parts (1n2w) 2202 | -10/Mines | Learned location of Storage (-9) 2255 | -10/Mines | Core integrity fell below 20% 2270 | -10/Mines | Destroyed by as-17412 with Assembled Blade Last Messages --------------- 02251_ U-05 Engineer builds a Wall. 02252_ Lgt. Treads destroyed. 02252_ U-05 Engineer lays Concrete. 02255_ D-53 Grenadier knocked back. 02256_ U-05 Engineer lays Concrete. 02258_ D-53 Grenadier destroyed. 02258_ U-05 Engineer destroyed. 02258_ U-05 Engineer builds a Wall. 02263_ The unstable cave ceiling collapses. 02263_ U-05 Engineer lays Concrete. 02264_ The unstable cave ceiling collapses. 02264_ U-05 Engineer lays Concrete. 02264_ as-17412 knocked back. 02265_ U-05 Engineer lays Concrete. 02267_ The unstable cave ceiling collapses. 02267_ R-06 Scavenger destroyed. 02267_ U-05 Engineer lays Concrete. 02267_ as-17412 knocked back. 02268_ U-05 Engineer lays Concrete. 02270_ Core Shielding destroyed. Map ----- +----------------------------------------------------+ | | | | | | | | | | | | | | | | | ??????????????????????????????????????????????? | | ########????????????######????????????????????? | | #???????????## ##???????????????????? | | #??????????## #????????????####???? | | < #??????????# #####???????## ##??? | | #?????????## #???????# ##?? | | ## #####????????## ##### ######### #?? | | ?# #???????????## ##???# #?? | | ?# #?????????### #????######## ### #?? | | ?# #????????## #???????????# #?## ##?? | | ?# ########## ### #??????????# #??####??? | | ?# ##?## ##???????## #?###????? | | ?# #############???# ###???### ## ###??? | | ?# #???????????????# % ##?## ##?? | | ?# #???????????????## % # #?# #?? | | ## #????????????????# ### #?? | | #????????????????## %a ## #?? | | ####????????????????# @ ### #?? | | ????????????????????# ## #####??# #? | | ????????????????????# #??????? #? | | ??????????????????? ##??????? #? | | ????????????????? "" ##???????? #? | | ??????????????? "" %#????????? #? | | ????????????? " " ????????? ## ##? | | ????????????## %u ??????????##?###?? | | ?????????????# # ????????????????? | | ?????????????## ??# ! # ????????????????? | | ??????????????#????? # =%!### ???????????????? | | #??????????????????? ###% #?? ???????????????? | | ##????????????????? ????? % ??? ??????????????? | | ##???????????????? ????? #??? ??????????????? | | = #???????????????? ???????????????????? | | !!! #??????????????? ???????????????????? | | **%=!#????????????????????????????????????? | | ##==#????????????????????????????????????? | | ##???#????????????????????????????????????? | | # ##?????????????????????????????????????????? | | ?# #??????????????????????????????????????????? | | ?? #??????????????????????????????????????????? | | ??? ??????????????????????????????????????????? | | ???##?????????????????????????????????????????? | | ##????????????????????????????????????????????? | +----------------------------------------------------+ Best States ------------- Heat Dissipation 25 Energy Generation 10 Energy Capacity 250 Matter Stores 300 Matter Capacity 300 Sight Range 16 Terrain Scan Density 10 Core Shielding 20 Evasion (%) 40 Recoil Reduction 2 Item Schematics ----------------- Huge Storage Unit | -10/Materials | Hacked Robot Schematics ------------------ None Fabricated ------------ Nothing Alien Tech Used ----------------- None Achievements -------------- None Challenges ------------ None Game ------ Seed MultinovaMiningCannon Manual? 0 Play Time 00:13:08 Cumulative 810.3 hours Start 2023.07.21 @ 02:41:57 End 2023.07.21 @ 02:57:16 Sessions 1 Manual Loads 0 Difficulty Rogue Special Mode None Game No. 700 Rogue 700 Adventurer 0 Explorer 0 Win Type - Total 39 Types 14/7/7/1/1/1/6/1/1 Lore% 92 Gallery% 96 Achievement% 81 Wizard Run 0 Options --------- ASCII 0 Keyboard 0 Movement Mouse Keybinds 1 Fullscreen 2 Font 24/Smallcaps Map View 76x50 Tactical HUD 1 Map Filters NONE Filters NONE Steam 1 RUN: 491aee65-c6cb-4edc-a883-2b7aad92b2db